bitfinex/quotes_SOLUSD_20260120
["timestamp","ask_amount","ask_price","bid_price","bid_amount"]
[1768926790516,7.87277594,127.02,126.97,6.70634531]
[1768926790719,15.46109961,127.02,126.97,6.70634531]
[1768926790922,6.70634531,127.01,126.97,6.70634531]
[1768926791126,6.70634531,127.01,126.96,7.57584994]
[1768926791928,18.12197836,127.02,126.97,6.70634531]
[1768926791929,24.82832367,127.02,126.97,6.70634531]
[1768926792329,7.87226473,127.03,126.99,6.70634531]
[1768926792531,0.88197836,127.04,127.0,6.70634531]
[1768926792931,24.82832367,127.06,127.01,6.70634531]
[1768926793133,32.69877376,127.06,126.99,0.86950463]
[1768926793331,7.58832367,127.05,127.01,6.70634531]
[1768926793536,7.58832367,127.05,127.0,6.70634531]
[1768926793740,7.58832367,127.04,126.99,6.70634531]
[1768926793939,0.88197836,127.04,127.0,6.70634531]
[1768926794229,7.58832367,127.04,127.0,6.70634531]
[1768926794446,0.88197836,127.04,127.0,6.70634531]
[1768926794648,7.58832367,127.04,127.0,6.70634531]
[1768926794848,0.88197836,127.04,127.0,6.70634531]
[1768926795023,7.58832367,127.04,127.0,6.70634531]
[1768926795432,4.9,127.03,127.0,6.70634531]
[1768926797440,4.9,127.03,127.01,6.70634531]
[1768926797627,1.40746744,127.12,127.03,1.3932569]
[1768926797827,8.11381275,127.09,127.04,1.3932569]
[1768926798051,6.70634531,127.07,127.02,8.09960221]
[1768926798245,6.70634531,127.08,127.03,6.70634531]
[1768926798437,7.86967813,127.07,127.03,6.70634531]
[1768926799033,14.57602344,127.07,127.02,1.3932569]
[1768926799440,17.24,127.07,127.03,6.70634531]
[1768926800157,33.22304045,127.08,127.02,8.09960221]
[1768926800461,15.98290549,127.08,127.03,6.70634531]
[1768926800664,33.22290549,127.08,127.03,6.70634531]
[1768926800862,15.98290549,127.08,127.03,6.70634531]
[1768926801040,17.24,127.09,127.04,6.70634531]
[1768926801365,6.70634531,127.09,127.04,8.09960221]
[1768926801552,18.64746744,127.1,127.05,6.70634531]
[1768926801553,8.11381275,127.1,127.05,6.70634531]
[1768926801752,18.64746744,127.1,127.06,6.70634531]
[1768926801946,25.35381275,127.1,127.05,6.70634531]
[1768926802146,15.98169246,127.1,127.05,6.70634531]
[1768926802361,9.27534715,127.1,127.05,6.70634531]
[1768926802561,15.98169246,127.1,127.05,6.70634531]
[1768926802765,9.27534715,127.1,127.05,6.70634531]
[1768926803064,7.8673644,127.11,127.06,8.09960221]
[1768926803248,6.70634531,127.1,127.05,8.09960221]
[1768926805945,33.22109378,127.11,127.06,6.70634531]
[1768926806564,33.22109378,127.11,127.06,8.09960221]
[1768926806766,6.70634531,127.1,127.06,1.3932569]
[1768926806968,33.22109378,127.11,127.06,8.09960221]
[1768926807167,6.70634531,127.1,127.06,1.3932569]
[1768926807368,1.40746744,127.09,127.04,8.09960221]
[1768926807540,8.11381275,127.08,127.02,1.3932569]
[1768926807745,44.77528512,127.11,127.0,1.3932569]
[1768926807746,8.11381275,127.05,127.0,1.3932569]
[1768926807952,8.11381275,127.05,127.01,6.70634531]
[1768926808152,1.40746744,127.05,127.01,6.70634531]
[1768926808368,6.70634531,127.06,127.01,6.70634531]
[1768926808870,14.57675361,127.06,127.01,6.70634531]
[1768926809075,6.70634531,127.06,127.02,6.70634531]
[1768926809248,23.94634531,127.06,127.02,6.70634531]
[1768926809447,31.81665498,127.06,127.01,8.09960221]
[1768926809642,17.24,127.08,127.03,8.09960221]
[1768926809849,17.24,127.08,127.03,1.3932569]
[1768926810075,23.94634531,127.08,127.04,6.70634531]
[1768926810372,6.70634531,127.08,127.04,6.70634531]
[1768926810570,23.94634531,127.08,127.04,6.70634531]
[1768926811067,14.57550358,127.08,127.04,6.70634531]
[1768926811249,31.81550358,127.08,127.04,6.70634531]
[1768926811771,33.22297102,127.08,127.03,1.3932569]
[1768926811972,33.22297102,127.08,127.03,8.09960221]
[1768926812472,1.4,127.07,127.03,8.09960221]
[1768926812767,9.51381275,127.07,127.02,6.70634531]
[1768926812969,26.75381275,127.07,127.02,6.70634531]
[1768926813167,8.11381275,127.06,127.01,6.70634531]
[1768926813557,6.70634531,127.05,127.0,8.09960221]
[1768926813767,6.70634531,127.04,127.0,1.3932569]
[1768926813972,8.11381275,127.05,127.0,8.09960221]
[1768926814875,1.40746744,127.05,127.0,8.09960221]
[1768926815075,6.70634531,127.05,127.01,1.3932569]
[1768926815470,14.57704825,127.06,127.01,8.09960221]
[1768926815777,6.70634531,127.05,127.01,1.3932569]
[1768926816072,1.40746744,127.06,127.01,8.09960221]
[1768926816265,18.64746744,127.06,127.02,6.70634531]
[1768926816654,1.40746744,127.06,127.03,6.70634531]
[1768926816974,18.64746744,127.06,127.02,8.09960221]
[1768926817273,1.40746744,127.06,127.02,8.09960221]
[1768926817469,18.64746744,127.06,127.02,8.09960221]
[1768926817787,17.24,127.06,127.02,8.09960221]
[1768926818082,17.24,127.08,127.05,8.09960221]
[1768926818261,27.78354374,127.1,127.05,8.09960221]
[1768926818262,1.40746744,127.1,127.06,6.70634531]
[1768926818573,33.21944786,127.14,127.09,6.70634531]
[1768926818779,6.70634531,127.13,127.08,8.09960221]
[1768926818973,15.98037852,127.13,127.08,8.09960221]
[1768926819179,15.98037852,127.13,127.09,6.70634531]
[1768926819965,33.22037852,127.13,127.09,6.70634531]
[1768926820559,26.51403321,127.13,127.09,6.70634531]
[1768926821084,33.22037852,127.13,127.09,6.70634531]
[1768926821262,33.22037852,127.13,127.08,8.09960221]
[1768926821465,26.51403321,127.13,127.09,6.70634531]
[1768926821681,33.22037852,127.13,127.09,6.70634531]
[1768926822475,46.17894314,127.13,127.08,1.3932569]
[1768926822673,6.70634531,127.12,127.08,1.3932569]
[1768926823181,31.81330001,127.12,127.08,1.3932569]
[1768926823366,33.22076745,127.12,127.08,8.09960221]
[1768926823679,18.64746744,127.12,127.08,8.09960221]
[1768926823877,26.51407624,127.12,127.08,8.09960221]
[1768926826183,9.27407624,127.12,127.08,8.09960221]
[1768926826386,26.51407624,127.12,127.08,8.09960221]
[1768926826568,9.27407624,127.12,127.08,8.09960221]
[1768926826778,10.37956682,127.13,127.09,9.28845392]
[1768926827072,17.07159476,127.13,127.09,2.58210861]
[1768926827585,27.61956682,127.13,127.09,9.27413655]
[1768926828083,27.61956682,127.13,127.09,2.58210861]
[1768926828392,27.61956682,127.13,127.09,9.27413655]
[1768926828887,2.51307006,127.12,127.08,6.69202794]
[1768926829186,9.205098,127.12,127.07,9.27413655]
[1768926829492,17.07210498,127.12,127.07,9.27413655]
[1768926830393,17.07210498,127.12,127.08,2.58210861]
[1768926830394,10.38007704,127.12,127.08,2.58210861]
[1768926830562,34.31210498,127.12,127.08,2.58210861]
[1768926830762,6.69202794,127.11,127.07,2.58210861]
[1768926830961,27.62007704,127.12,127.07,9.27413655]
[1768926831192,34.31210498,127.12,127.07,9.27413655]
[1768926831371,34.31210498,127.12,127.07,2.58210861]
[1768926831571,34.31210498,127.12,127.07,9.27413655]
[1768926831878,9.205098,127.1,127.05,9.27413655]
[1768926832081,9.205098,127.09,127.02,2.58210861]
[1768926832290,9.205098,127.08,127.03,2.58210861]
[1768926832590,9.205098,127.08,127.03,9.27413655]
[1768926832967,2.51307006,127.07,127.03,9.27413655]
[1768926833188,2.51307006,127.08,127.04,6.69202794]
[1768926833389,9.205098,127.08,127.04,6.69202794]
[1768926833695,9.205098,127.08,127.03,9.27413655]
[1768926833894,17.07422678,127.08,127.04,2.58210861]
[1768926834087,9.205098,127.08,127.04,2.58210861]
[1768926834392,2.51307006,127.08,127.04,9.27413655]
[1768926836096,27.62182338,127.09,127.05,9.27413655]
[1768926836483,34.31385132,127.09,127.05,9.27413655]
[1768926836783,34.31385132,127.09,127.04,9.27413655]
[1768926836994,2.51307006,127.07,127.03,6.69202794]
[1768926837174,2.51307006,127.07,127.03,9.27413655]
[1768926837704,1.4,127.08,127.03,9.27413655]
[1768926837896,1.4,127.08,127.03,6.69202794]
[1768926838206,11.78239589,127.08,127.04,2.58210861]
[1768926838705,3.91307006,127.08,127.04,2.58210861]
[1768926838997,3.91307006,127.08,127.04,9.27413655]
[1768926839193,34.31384298,127.09,127.05,9.27413655]
[1768926839374,14.55999116,127.1,127.06,9.27413655]
[1768926839574,19.66754236,127.12,127.03,7.87205591]
[1768926839575,2.51307006,127.13,127.07,9.27413655]
[1768926839806,2.51307006,127.11,127.07,9.27413655]
[1768926840110,9.205098,127.11,127.07,2.58210861]
[1768926840282,9.205098,127.11,127.07,9.27413655]
[1768926840483,34.31168075,127.12,127.08,9.27413655]
[1768926840782,2.51307006,127.11,127.08,6.69202794]
[1768926841283,2.51307006,127.09,127.04,2.58210861]
[1768926841483,2.51307006,127.08,127.04,9.27413655]
[1768926841800,2.51307006,127.09,127.05,6.69202794]
[1768926842691,6.69202794,127.08,127.04,2.58210861]
[1768926842891,6.69202794,127.08,127.04,9.27413655]
[1768926843088,6.69202794,127.08,127.04,2.58210861]
[1768926843402,9.205098,127.07,127.02,2.58210861]
[1768926843704,9.205098,127.07,126.98,6.69202794]
[1768926843705,2.51307006,127.02,126.98,2.58210861]
[1768926843887,2.51307006,127.04,126.99,2.58210861]
[1768926844202,2.51307006,127.04,127.0,9.27413655]
[1768926844390,34.31551485,127.06,127.01,6.69202794]
[1768926844703,9.205098,127.05,127.0,9.27413655]
[1768926844875,9.205098,127.05,127.0,2.58210861]
[1768926845081,9.205098,127.05,127.0,9.27413655]
[1768926845507,17.07605212,127.05,127.0,9.27413655]
[1768926845900,2.51307006,127.05,127.01,2.58210861]
[1768926846108,2.51307006,127.05,127.01,9.27413655]
[1768926846312,2.51307006,127.05,127.02,6.69202794]
[1768926846621,2.51307006,127.05,127.01,9.27413655]
[1768926846908,9.205098,127.05,127.01,2.58210861]
[1768926847112,2.51307006,127.05,127.01,9.27413655]
[1768926847410,2.51307006,127.05,127.02,6.69202794]
[1768926847910,2.51307006,127.05,127.01,9.27413655]
[1768926850314,2.51307006,127.07,127.02,2.58210861]
[1768926850603,2.51307006,127.08,127.04,9.27413655]
[1768926852405,34.31301751,127.1,127.06,6.69202794]
[1768926852707,34.31301751,127.1,127.06,9.27413655]
[1768926852882,34.31301751,127.1,127.06,6.69202794]
[1768926853086,2.51307006,127.09,127.05,6.69202794]
[1768926854206,2.51307006,127.05,127.01,6.69202794]
[1768926854405,17.07608561,127.05,127.0,2.58210861]
[1768926854608,9.205098,127.04,127.0,2.58210861]
[1768926854999,10.12869828,127.02,126.98,3.43498243]
[1768926855304,3.43667034,127.04,126.99,3.43498243]
[1768926855483,10.12869828,127.04,126.99,10.12701037]
[1768926855694,3.43667034,127.03,126.99,3.43498243]
[1768926855888,10.12869828,127.03,126.99,3.43498243]
[1768926856398,10.12869828,127.03,126.98,10.12701037]
[1768926856399,18.00126086,127.03,126.98,10.12701037]
[1768926856605,11.30923292,127.03,126.99,3.43498243]
[1768926856807,18.00126086,127.03,126.99,3.43498243]
[1768926858913,11.30923292,127.03,126.99,3.43498243]
[1768926859115,10.12869828,127.03,126.99,3.43498243]
[1768926859307,18.00101843,127.03,126.99,3.43498243]
[1768926860022,10.12869828,127.03,126.99,3.43498243]
[1768926860391,18.00090158,127.03,126.99,3.43498243]
[1768926860716,11.30887364,127.03,126.99,10.12701037]
[1768926860904,3.43667034,127.03,126.99,10.12701037]
[1768926861209,6.69202794,127.04,127.0,10.12701037]
[1768926861409,10.12869828,127.04,127.0,10.12701037]
[1768926861601,10.12869828,127.04,127.0,6.69202794]
[1768926862298,3.43667034,127.04,127.0,3.43498243]
[1768926862501,10.12869828,127.04,127.0,3.43498243]
[1768926862702,3.43667034,127.04,127.0,10.12701037]
[1768926862904,3.43667034,127.06,127.01,10.12701037]
[1768926863216,10.12869828,127.06,127.02,6.69202794]
[1768926863527,3.43667034,127.05,126.99,3.43498243]
[1768926863721,6.69202794,127.09,127.05,3.43498243]
[1768926864010,27.36869828,127.1,127.05,10.12701037]
[1768926864391,10.12869828,127.09,127.05,3.43498243]
[1768926864590,17.9973668,127.09,127.05,10.12701037]
[1768926864792,14.56069646,127.09,127.05,10.12701037]
[1768926865219,6.69202794,127.08,127.04,6.69202794]
[1768926865592,31.80009325,127.1,127.05,6.69202794]
[1768926865807,6.69202794,127.09,127.05,6.69202794]
[1768926866005,6.69202794,127.08,127.03,6.69202794]
[1768926866317,44.77761684,127.1,126.98,3.43498243]
[1768926866318,6.69202794,127.04,126.98,3.43498243]
[1768926866493,6.69202794,127.01,126.98,3.43498243]
[1768926868316,10.12869828,127.02,126.98,3.43498243]
[1768926868907,18.00154361,127.02,126.98,3.43498243]
[1768926869411,14.56484404,127.02,126.98,3.43498243]
[1768926869615,6.69202794,127.01,126.98,3.43498243]
[1768926870401,14.56484404,127.02,126.98,3.43498243]
[1768926870607,6.69202794,127.03,126.99,3.43498243]
[1768926874122,5.20733017,127.02,126.99,3.43498243]
[1768926874325,11.30841779,127.04,126.99,3.43498243]
[1768926874522,11.90051872,127.03,126.99,3.43498243]
[1768926874705,5.20849078,127.02,126.99,3.43498243]
[1768926875908,11.90051872,127.02,126.98,3.43498243]
[1768926876121,6.69202794,127.02,126.98,3.43498243]
[1768926876325,5.20921468,127.01,126.98,3.43498243]
[1768926876522,14.56528783,127.02,126.98,3.43498243]
[1768926876726,5.20873217,127.01,126.98,3.43498243]
[1768926876927,18.00195817,127.02,126.98,3.43498243]
[1768926877117,6.69202794,127.0,126.96,3.43498243]
[1768926877314,5.20754216,126.99,126.96,3.43498243]
[1768926877631,6.69202794,127.0,126.96,3.43498243]
[1768926877831,5.20727578,126.99,126.96,3.43498243]
[1768926878018,6.69202794,126.99,126.96,3.43498243]
[1768926878215,3.43667034,126.96,126.9,3.53498243]
[1768926878543,11.89580598,126.95,126.9,3.53498243]
[1768926878733,5.20377804,126.94,126.9,3.53498243]
[1768926879031,6.69202794,126.95,126.9,3.53498243]
[1768926879240,5.19815584,126.94,126.91,3.43498243]
[1768926879529,23.95202794,126.95,126.91,3.43498243]
[1768926879730,5.19790659,126.94,126.91,3.43498243]
[1768926879915,6.69202794,126.95,126.91,3.43498243]
[1768926880113,5.1970398,126.94,126.91,3.43498243]
[1768926880304,6.69202794,126.95,126.91,3.43498243]
[1768926880503,5.19274295,126.94,126.91,3.43498243]
[1768926880717,6.69202794,126.95,126.91,3.43498243]
[1768926880930,5.19299349,126.94,126.91,3.43498243]
[1768926881119,6.69202794,126.95,126.91,3.43498243]
[1768926882032,35.26543618,126.96,126.91,3.43498243]
[1768926882225,5.18689187,126.95,126.91,3.43498243]
[1768926882431,27.38869828,126.96,126.91,3.43498243]
[1768926882734,6.69202794,126.95,126.91,3.43498243]
[1768926883123,35.26519509,126.96,126.91,3.43498243]
[1768926883826,5.18416404,126.95,126.91,3.43498243]
[1768926884005,18.00530396,126.96,126.91,3.43498243]
[1768926884211,6.69202794,126.95,126.91,3.43498243]
[1768926886829,6.69202794,126.94,126.91,3.43498243]
[1768926887131,6.69202794,126.93,126.9,0.1]
[1768926887520,10.78063399,126.93,126.9,0.1]
[1768926887735,6.69202794,126.92,126.9,0.1]
[1768926888028,10.78063399,126.91,126.87,3.95742272]
[1768926888236,6.69202794,126.88,126.84,11.84114185]
[1768926888416,6.69202794,126.88,126.83,3.95742272]
[1768926888417,23.95202794,126.87,126.83,3.95742272]
[1768926888616,28.04063399,126.87,126.83,3.95742272]
[1768926888822,10.78063399,126.89,126.85,3.95742272]
[1768926889016,17.26,126.88,126.85,3.95742272]
[1768926889725,6.71738559,126.87,126.83,3.95742272]
[1768926889927,10.80599164,126.87,126.83,3.95742272]
[1768926890127,6.71738559,126.85,126.81,3.95742272]
[1768926890329,6.71738559,126.85,126.79,3.95742272]
[1768926890330,28.06599164,126.85,126.79,3.95742272]
[1768926890527,28.06599164,126.85,126.8,10.67480831]
[1768926891111,4.08860605,126.87,126.81,11.84304545]
[1768926891313,6.71738559,126.86,126.82,3.95742272]
[1768926891516,10.80599164,126.88,126.83,10.67480831]
[1768926891849,4.08860605,126.9,126.84,6.71738559]
[1768926892052,10.80599164,126.88,126.83,6.71738559]
[1768926892344,4.08860605,126.88,126.81,19.71397079]
[1768926892522,4.08860605,126.9,126.84,6.71738559]
[1768926892718,10.74599165,126.89,126.84,14.60099333]
[1768926892931,10.80599164,126.89,126.84,6.71738559]
[1768926893725,10.80599164,126.89,126.84,10.67480831]
[1768926894139,4.08860605,126.89,126.84,18.55871642]
[1768926894339,4.08860605,126.9,126.86,6.71738559]
[1768926894727,4.08860605,126.92,126.88,6.71738559]
[1768926894941,4.08860605,126.94,126.9,10.67480831]
[1768926895547,10.80599164,126.94,126.9,3.95742272]
[1768926896030,4.08860605,126.94,126.9,10.67480831]
[1768926896424,28.06599164,126.96,126.91,10.67480831]
[1768926896746,10.80599164,126.95,126.91,3.95742272]
[1768926897046,17.26,126.96,126.89,10.67480831]
[1768926897047,10.80599164,126.94,126.89,10.67480831]
[1768926898125,4.08860605,126.93,126.89,6.71738559]
[1768926900239,4.08860605,126.93,126.88,3.95742272]
[1768926900424,10.80599164,126.93,126.87,18.55663215]
[1768926900621,26.40645531,126.98,126.89,10.67480831]
[1768926900819,10.80599164,126.98,126.93,10.67480831]
[1768926901129,4.08860605,126.97,126.92,6.71738559]
[1768926901327,4.08860605,126.99,126.94,10.67480831]
[1768926901640,4.08860605,126.99,126.95,3.95742272]
[1768926901844,4.08860605,126.99,126.95,10.67480831]
[1768926902032,10.80599164,126.98,126.93,10.67480831]
[1768926902339,4.08860605,126.98,126.94,3.95742272]
[1768926902552,10.80599164,126.98,126.94,3.95742272]
[1768926902838,4.08860605,127.0,126.95,3.95742272]
[1768926903025,4.08860605,127.0,126.91,6.71738559]
[1768926903026,10.80599164,126.97,126.93,3.95742272]
[1768926903232,4.08860605,126.97,126.93,3.95742272]
[1768926904129,4.08860605,126.97,126.91,7.87935269]
[1768926904130,10.80599164,126.96,126.91,10.67480831]
[1768926904456,10.80599164,127.0,126.95,10.67480831]
[1768926904653,10.80599164,127.0,126.91,14.59682372]
[1768926904654,10.80599164,127.02,126.97,3.95742272]
[1768926904839,10.80599164,127.02,126.97,3.92742272]
[1768926905228,10.80599164,127.03,126.98,6.71738559]
[1768926905740,10.80599164,127.03,126.93,17.26]
[1768926905741,6.71738559,127.02,127.01,0.156]
[1768926906228,6.71738559,127.02,127.01,1e-08]
[1768926907655,14.59016153,127.02,127.01,1e-08]
[1768926908153,11.96104199,127.03,127.01,1e-08]
[1768926908341,18.67842758,127.03,127.01,1e-08]
[1768926910652,4.08860605,127.05,127.01,1e-08]
[1768926910832,6.71738559,127.04,127.01,1e-08]
[1768926911347,10.80599164,127.02,127.01,1e-08]
[1768926911558,10.80599164,127.02,126.98,3.95742272]
[1768926911764,6.71738559,127.01,126.98,3.95742272]
[1768926911935,10.80599164,127.02,126.98,3.95742272]
[1768926912765,18.67894002,127.02,126.96,10.67480831]
[1768926912944,18.67894002,127.02,126.97,3.95742272]
[1768926913778,10.80599164,127.01,126.97,3.95742272]
[1768926914360,6.71738559,127.0,126.96,3.95742272]
[1768926914755,10.80599164,127.01,126.96,3.95742272]
[1768926915271,7.87401574,127.0,126.96,3.95742272]
[1768926915464,7.87401574,127.0,126.93,7.87806126]
[1768926915465,10.80108211,126.99,126.94,4.20534321]
[1768926915848,4.08369652,126.99,126.94,10.9227288]
[1768926916048,4.08369652,126.99,126.95,10.9227288]
[1768926916450,4.08369652,126.99,126.95,4.20534321]
[1768926918167,7.87401574,127.0,126.95,4.20534321]
[1768926918367,6.71738559,127.04,126.99,4.20534321]
[1768926918569,35.93298047,127.04,126.99,4.20534321]
[1768926919372,6.71738559,127.03,126.99,4.20534321]
[1768926919573,10.80108211,127.01,126.97,4.20534321]
[1768926919883,6.71738559,127.02,126.97,4.20534321]
[1768926920354,10.80108211,127.02,126.97,4.20534321]
[1768926921080,6.71738559,127.01,126.97,4.20534321]
[1768926921768,18.67402947,127.02,126.97,4.20534321]
[1768926922679,18.67224085,127.05,127.01,4.20534321]
[1768926922872,14.634998,127.05,127.01,4.11195381]
[1768926923076,6.76383926,127.04,126.99,2.68014274]
[1768926923274,4.08369652,127.04,126.99,2.68014274]
[1768926923592,14.63562125,127.04,126.99,2.68014274]
[1768926923962,6.76383926,127.03,126.97,2.68014274]
[1768926924281,6.76383926,127.02,126.97,2.68014274]
[1768926924982,6.76383926,127.02,126.97,6.88548595]
[1768926925583,6.76383926,127.02,126.98,4.20534321]
[1768926926086,14.63695123,127.02,126.98,4.20534321]
[1768926927086,18.66060808,127.02,126.98,4.20534321]
[1768926927486,10.78749611,127.0,126.96,4.20534321]
[1768926928186,4.08369652,127.0,126.96,10.9091428]
[1768926928385,4.08369652,127.0,126.96,4.20534321]
[1768926928690,4.08369652,127.0,126.96,10.9091428]
[1768926928878,21.34369652,127.03,126.99,4.20534321]
[1768926929188,17.26,127.03,127.0,4.20534321]
[1768926929370,11.95549797,127.04,127.0,4.20534321]
[1768926929570,29.21549797,127.04,127.0,4.20534321]
[1768926930178,14.57512281,127.05,127.01,4.20534321]
[1768926930483,17.26,127.04,127.01,4.20534321]
[1768926931064,17.26,127.06,127.02,10.9091428]
[1768926931392,21.34369652,127.06,127.02,10.9091428]
[1768926932085,21.34369652,127.06,127.02,4.20534321]
[1768926932282,21.34369652,127.06,127.01,10.9091428]
[1768926932478,17.26,127.06,127.02,4.20534321]
[1768926932876,4.08369652,127.06,127.02,4.20534321]
[1768926933076,4.08369652,127.06,127.02,3.70534321]
[1768926933691,6.70379959,127.07,127.02,6.70379959]
[1768926933886,17.26,127.07,127.02,6.70379959]
[1768926934069,4.08369652,127.12,127.05,6.70379959]
[1768926934398,4.08369652,127.12,127.07,6.70379959]
[1768926934399,4.08369652,127.11,127.07,6.70379959]
[1768926934683,4.08369652,127.11,127.02,27.55450482]
[1768926934684,17.26,127.12,127.08,6.70379959]
[1768926934885,21.34369652,127.12,127.08,6.70379959]
[1768926935088,4.08369652,127.14,127.09,6.70379959]
[1768926935295,4.08369652,127.14,127.1,10.9091428]
[1768926935470,10.78749611,127.16,127.11,10.9091428]
[1768926935669,10.78749611,127.15,127.1,6.70379959]
[1768926935873,4.08369652,127.15,127.1,10.9091428]
[1768926936477,29.20834441,127.16,127.11,10.9091428]
[1768926936705,35.912144,127.16,127.11,10.9091428]
[1768926936893,11.94834441,127.16,127.12,6.70379959]
[1768926937395,11.94834441,127.16,127.07,19.67320523]
[1768926937396,12.14657808,127.18,127.14,4.20534321]
[1768926937597,10.78749611,127.17,127.12,10.9091428]
[1768926937786,10.78749611,127.15,127.1,4.20534321]
[1768926937980,11.94979304,127.13,127.08,4.20534321]
[1768926938182,10.78749611,127.13,127.08,10.9091428]
[1768926938385,35.91241694,127.15,127.1,10.9091428]
[1768926938696,10.78749611,127.14,127.09,6.70379959]
[1768926938897,6.70379959,127.13,127.08,10.9091428]
[1768926939203,6.70379959,127.13,127.09,4.20534321]
[1768926939783,11.94833569,127.16,127.1,10.9091428]
[1768926939981,23.94379959,127.17,127.12,10.9091428]
[1768926940295,10.78749611,127.16,127.11,6.70379959]
[1768926940598,21.32369652,127.16,127.11,10.9091428]
[1768926940800,28.02749611,127.16,127.11,10.9091428]
[1768926941378,0.2,127.18,127.15,10.9091428]
[1768926941696,0.2,127.19,127.17,10.9091428]
[1768926941897,0.2,127.2,127.17,10.9091428]
[1768926942084,0.2,127.2,127.18,6.70379959]
[1768926942286,0.2,127.22,127.18,10.9091428]
[1768926942483,0.2,127.22,127.19,6.70379959]
[1768926942694,0.2,127.22,127.18,10.9091428]
[1768926942893,4.28369652,127.22,127.18,4.20534321]
[1768926943290,4.08369652,127.21,127.16,4.20534321]
[1768926943510,0.2,127.22,127.18,10.9091428]
[1768926943879,0.2,127.25,127.22,4.16955914]
[1768926944206,11.12603313,127.24,127.18,4.16955914]
[1768926944393,6.70379959,127.23,127.18,10.87335873]
[1768926944600,4.42223354,127.22,127.17,10.87335873]
[1768926944803,4.42223354,127.22,127.18,6.70379959]
[1768926945890,6.70379959,127.23,127.18,11.01463039]
[1768926946107,18.67015118,127.23,127.18,11.01463039]
[1768926946303,18.67015118,127.23,127.18,4.3108308]
[1768926946304,6.70379959,127.22,127.18,4.3108308]
[1768926946509,10.81035964,127.22,127.17,11.01463039]
[1768926946804,10.81035964,127.22,127.17,4.3108308]
[1768926947006,10.81035964,127.21,127.16,11.01463039]
[1768926947210,4.10656005,127.21,127.17,6.70379959]
[1768926947896,10.81035964,127.21,127.16,11.01463039]
[1768926948510,18.6714405,127.21,127.16,4.3108308]
[1768926948708,10.81035964,127.2,127.15,11.01463039]
[1768926948919,10.79162698,127.2,127.15,18.86056764]
[1768926949112,11.96714967,127.22,127.17,4.3108308]
[1768926949415,18.6522166,127.22,127.17,4.3108308]
[1768926949789,10.79162698,127.22,127.17,4.3108308]
[1768926949988,4.10656005,127.22,127.17,10.99589773]
[1768926950306,10.79162698,127.22,127.17,10.99589773]
[1768926950509,10.79162698,127.21,127.16,6.68506693]
[1768926950809,10.79162698,127.21,127.16,4.3108308]
[1768926951010,10.79162698,127.2,127.14,18.86116431]
[1768926951186,27.50947273,127.23,127.14,10.99589773]
[1768926951187,6.68506693,127.19,127.14,10.99589773]
[1768926951389,10.79162698,127.18,127.14,4.3108308]
[1768926952513,4.10656005,127.18,127.14,4.3108308]
[1768926952709,10.79162698,127.18,127.14,4.3108308]
[1768926952909,10.79162698,127.18,127.11,6.68506693]
[1768926952910,10.79162698,127.16,127.11,6.68506693]
[1768926953102,4.10656005,127.15,127.1,10.99589773]
[1768926953411,4.10656005,127.15,127.07,17.24]
[1768926953412,10.79162698,127.17,127.12,10.99589773]
[1768926955410,4.10656005,127.16,127.12,4.3108308]
[1768926955586,10.79162698,127.16,127.12,4.3108308]
[1768926956016,10.79162698,127.16,127.11,18.86297569]
[1768926956614,4.10656005,127.16,127.12,6.68506693]
[1768926957201,4.10656005,127.16,127.12,10.99589773]
[1768926957897,4.10656005,127.14,127.1,4.3108308]
[1768926958112,10.79162698,127.14,127.09,14.55325728]
[1768926958411,10.79162698,127.13,127.08,6.68506693]
[1768926958709,6.68506693,127.12,127.07,10.99589773]
[1768926958911,10.79162698,127.13,127.07,18.86519364]
[1768926959215,10.79162698,127.13,127.08,18.8645667]
[1768926959804,4.10656005,127.13,127.09,18.8638833]
[1768926960010,10.79162698,127.15,127.1,6.68506693]
[1768926960208,4.10656005,127.15,127.11,10.99589773]
[1768926960815,6.68506693,127.16,127.11,10.99589773]
[1768926960816,10.79162698,127.16,127.11,10.99589773]
[1768926961134,28.03162698,127.18,127.13,10.99589773]
[1768926961493,4.10656005,127.17,127.13,10.99589773]
[1768926961907,23.92506693,127.18,127.14,4.3108308]
[1768926962220,21.34656005,127.18,127.14,4.3108308]
[1768926962432,7.8617987,127.2,127.14,4.3108308]
[1768926962433,4.10656005,127.2,127.15,10.99589773]
[1768926962603,4.10656005,127.2,127.16,10.99589773]
[1768926962795,4.10656005,127.2,127.15,6.68506693]
[1768926962796,6.68506693,127.2,127.15,6.68506693]
[1768926962994,4.10656005,127.19,127.15,6.68506693]
[1768926963316,4.10656005,127.19,127.15,10.99589773]
[1768926963901,10.79162698,127.21,127.16,14.54917317]
[1768926964220,4.10656005,127.21,127.16,18.86000397]
[1768926964398,10.79162698,127.21,127.16,10.99589773]
[1768926964817,4.10656005,127.21,127.16,10.99589773]
[1768926965305,4.10656005,127.21,127.17,6.68506693]
[1768926966110,6.68506693,127.19,127.14,6.68506693]
[1768926966310,7.86107177,127.21,127.13,6.68506693]
[1768926966311,4.10656005,127.17,127.13,6.68506693]
[1768926966626,10.79162698,127.17,127.12,10.99589773]